bitfinex-derivatives/quotes_BTCF0:USTF0_20250129
["timestamp","ask_amount","ask_price","bid_price","bid_amount"]
[1738125917546,0.0338,102010.0,102000.0,0.70044251]
[1738125918038,0.0338,102010.0,102000.0,0.33964251]
[1738125919749,0.0338,102010.0,102000.0,0.63314922]
[1738125921858,0.0338,102010.0,102000.0,0.99394922]
[1738125922564,0.04365965,102010.0,102000.0,0.63314922]
[1738125925866,0.60058665,102010.0,102000.0,0.63314922]
[1738125926361,0.60058665,102010.0,102000.0,0.33964251]
[1738125931165,0.20698665,102010.0,102000.0,0.33964251]
[1738125931464,0.20698665,102010.0,102000.0,0.37084251]
[1738125931663,0.01085965,102010.0,102000.0,0.37084251]
[1738125933170,0.01085965,102010.0,102000.0,0.33964251]
[1738125933367,0.05931765,102010.0,102000.0,0.33964251]
[1738125933769,0.05931765,102010.0,102000.0,0.63314922]
[1738125936271,0.01085965,102010.0,102000.0,0.63314922]
[1738125939681,0.01085965,102010.0,102000.0,0.68160722]
[1738125939866,0.01085965,102010.0,102000.0,1.04240722]
[1738125940067,0.01085965,102010.0,102000.0,1.12186522]
[1738125940268,0.01085965,102010.0,102000.0,0.71260722]
[1738125941182,0.01085965,102010.0,102000.0,1.07340722]
[1738125941784,0.01085965,102010.0,102000.0,1.12186522]
[1738125941979,0.08897791,102010.0,102000.0,1.12186522]
[1738125943176,0.12733745,102020.0,102010.0,0.196127]
[1738125943478,0.12733745,102020.0,102010.0,0.71328351]
[1738125944476,0.12733745,102020.0,102010.0,0.71428351]
[1738125945586,0.00999995,102020.0,102010.0,1.00779022]
[1738125948486,0.00999995,102020.0,102010.0,1.01781027]
[1738125950392,0.0327,102030.0,102020.0,0.196108]
[1738125950581,0.0327,102030.0,102020.0,0.28706451]
[1738125953293,0.04245667,102030.0,102020.0,0.28706451]
[1738125953496,0.04245667,102030.0,102020.0,0.58057122]
[1738125956582,0.00975667,102030.0,102020.0,0.58057122]
[1738125956783,0.36201535,102040.0,102030.0,0.196089]
[1738125956983,0.31355735,102040.0,102030.0,0.35014551]
[1738125957295,0.72281535,102040.0,102030.0,0.30168751]
[1738125958299,0.73283371,102040.0,102030.0,0.30168751]
[1738125959186,0.73683371,102040.0,102030.0,0.30168751]
[1738125960597,0.73683371,102040.0,102030.0,0.259189]
[1738125960799,0.73683371,102040.0,102030.0,0.30166666]
[1738125961496,0.61949621,102040.0,102030.0,0.30166666]
[1738125963189,0.57103821,102040.0,102030.0,0.30166666]
[1738125963395,0.21023821,102040.0,102030.0,0.30166666]
[1738125964500,0.25869621,102040.0,102030.0,0.30166666]
[1738125964698,0.61949621,102040.0,102030.0,0.30166666]
[1738125967194,0.01416521,102040.0,102030.0,0.35012466]
[1738125967700,0.01416521,102040.0,102030.0,0.71092466]
[1738125973804,0.00414685,102040.0,102030.0,1.00443137]
[1738125975694,0.00414685,102040.0,102030.0,1.05288937]
[1738125976005,1e-08,102040.0,102030.0,1.11620322]
[1738125976713,1e-08,102040.0,102030.0,1.16466122]
[1738125977209,0.4781375,102060.0,102050.0,0.19605]
[1738125977410,0.4781375,102060.0,102050.0,0.28698566]
[1738125977908,0.4781375,102060.0,102050.0,0.34988566]
[1738125978908,0.48816418,102060.0,102050.0,0.34988566]
[1738125979307,0.49716418,102060.0,102050.0,0.35088566]
[1738125981814,0.37982668,102060.0,102050.0,0.35088566]
[1738125983420,0.01902668,102060.0,102050.0,0.35088566]
[1738125983616,0.009,102060.0,102050.0,0.43948566]
[1738125984512,0.009,102060.0,102050.0,0.80028566]
[1738125985418,0.15874706,102070.0,102060.0,0.196031]
[1738125985608,0.15874706,102070.0,102060.0,0.28696666]
[1738125986017,0.04140956,102070.0,102060.0,0.28696666]
[1738125986218,0.04140956,102070.0,102060.0,0.33542466]
[1738125986413,0.04140956,102070.0,102060.0,0.33642466]
[1738125986414,0.00980956,102070.0,102060.0,0.33642466]
[1738125986607,0.21482156,102070.0,102060.0,0.28796666]
[1738125986811,0.62407956,102070.0,102060.0,0.001]
[1738125989117,0.57562156,102070.0,102060.0,0.049458]
[1738125989313,0.57562156,102070.0,102060.0,0.09187902]
[1738125989515,0.57562156,102070.0,102060.0,0.049458]
[1738125989819,0.57562156,102070.0,102060.0,0.09187855]
[1738125990221,0.57562156,102070.0,102060.0,0.049458]
[1738125990435,0.57562156,102070.0,102060.0,0.0918766]
[1738125990922,0.57562156,102070.0,102060.0,0.049458]
[1738125994217,0.62407956,102070.0,102060.0,0.001]
[1738125994419,0.68797956,102070.0,102060.0,0.001]
[1738125995229,0.63952156,102070.0,102060.0,0.001]
[1738125996028,0.68797956,102070.0,102060.0,0.001]
[1738125997030,0.63952156,102070.0,102060.0,0.001]
[1738125997631,0.63952156,102070.0,102060.0,0.049458]
[1738125999021,0.63952156,102070.0,102060.0,0.001]
[1738126001534,0.63952156,102070.0,102060.0,0.0434615]
[1738126002432,0.68797956,102070.0,102060.0,0.0434615]
[1738126002636,0.68797956,102070.0,102060.0,0.001]
[1738126005235,0.80531706,102070.0,102060.0,0.001]
[1738126005440,1.16611706,102070.0,102060.0,0.001]
[1738126006634,1.11765906,102070.0,102060.0,0.245489]
[1738126006837,1.11765906,102070.0,102060.0,0.23951646]
[1738126008831,1.16611706,102070.0,102060.0,0.04348546]
[1738126012947,1.31278894,102070.0,102060.0,0.04348546]
[1738126022947,2.81278894,102070.0,102060.0,0.04348546]
[1738126023744,1.31278894,102070.0,102060.0,0.04348546]
[1738126024241,2.81278894,102070.0,102060.0,0.04348546]
[1738126024447,2.81278894,102070.0,102060.0,0.001]
[1738126025452,1.31278894,102070.0,102060.0,0.001]
[1738126028754,1.22470857,102070.0,102060.0,0.001]
[1738126029745,1.19250857,102070.0,102060.0,0.001]
[1738126029942,1.16080857,102070.0,102060.0,0.001]
[1738126030147,0.98487956,102070.0,102060.0,0.001]
[1738126031455,1.13174112,102070.0,102060.0,0.001]
[1738126033857,1.13174112,102070.0,102060.0,0.245489]
[1738126033858,1.08328312,102070.0,102060.0,0.245489]
[1738126034055,1.08328312,102070.0,102060.0,0.28797992]
[1738126037346,0.16567112,102070.0,102060.0,0.36923792]
[1738126038258,0.13629508,102070.0,102060.0,0.36923792]
[1738126039764,0.32309543,102080.0,102060.0,0.77488492]
[1738126040060,0.32309543,102080.0,102070.0,0.30817]
[1738126040267,0.68389543,102080.0,102070.0,0.35066092]
[1738126040960,0.47823537,102080.0,102070.0,0.35066092]
[1738126041160,0.48123537,102080.0,102070.0,0.35066092]
[1738126042353,0.49096486,102080.0,102070.0,0.35066092]
[1738126044061,0.13016486,102080.0,102070.0,0.35066092]
[1738126044561,0.49096486,102080.0,102070.0,0.35066092]
[1738126044766,0.12043537,102080.0,102070.0,0.87325926]
[1738126045361,0.003,102080.0,102070.0,0.87325926]
[1738126045563,0.003,102080.0,102070.0,0.82480126]
[1738126054869,0.003,102080.0,102070.0,0.83952126]
[1738126056268,0.003,102080.0,102070.0,0.84918936]
[1738126056571,0.003,102080.0,102070.0,0.48838936]
[1738126056773,0.003,102080.0,102070.0,0.84918936]
[1738126056973,0.003,102080.0,102070.0,0.83952126]
[1738126057562,0.003,102080.0,102070.0,0.72618092]
[1738126057863,0.003,102080.0,102070.0,0.71146092]
[1738126061568,0.003,102080.0,102070.0,0.79342092]
[1738126062874,0.003,102080.0,102070.0,0.35066092]
[1738126063168,0.003,102080.0,102070.0,0.43262092]
[1738126063373,0.0334,102080.0,102070.0,0.43262092]
[1738126067375,0.0334,102080.0,102070.0,0.72542567]
[1738126068170,0.0334,102080.0,102070.0,1.12674191]
[1738126070165,0.0334,102080.0,102070.0,1.45371754]
[1738126070368,0.0334,102080.0,102070.0,1.4132013]
[1738126073180,0.0334,102080.0,102070.0,1.45371754]
[1738126077093,0.0334,102080.0,102070.0,1.09291754]
[1738126077393,0.0334,102080.0,102070.0,1.4132013]
[1738126080186,0.0334,102080.0,102070.0,1.45371754]
[1738126081984,0.0334,102080.0,102070.0,1.53775547]
[1738126082186,0.0334,102080.0,102070.0,1.49723923]
[1738126085192,0.590193,102080.0,102070.0,0.81000923]
[1738126085390,0.590193,102080.0,102070.0,0.7259713]
[1738126086083,0.638651,102080.0,102070.0,0.6933713]
[1738126086286,0.620393,102080.0,102070.0,0.6933713]
[1738126086490,0.668851,102080.0,102070.0,0.6933713]
[1738126086676,0.620393,102080.0,102070.0,0.6933713]
[1738126088497,0.668851,102080.0,102070.0,0.6622713]
[1738126088692,0.699851,102080.0,102070.0,0.6622713]
[1738126089187,0.651393,102080.0,102070.0,0.6622713]
[1738126089383,0.651393,102080.0,102070.0,0.7107293]
[1738126089591,0.590193,102080.0,102070.0,0.9067413]
[1738126089793,0.590193,102080.0,102070.0,0.9390413]
[1738126094294,0.67807813,102080.0,102070.0,0.31926092]
[1738126094496,0.72653613,102080.0,102070.0,0.27080292]
[1738126095095,0.67807813,102080.0,102070.0,0.27080292]
[1738126095499,0.67807813,102080.0,102070.0,0.35206092]
[1738126096484,0.67807813,102080.0,102070.0,0.30360292]
[1738126097487,0.67807813,102080.0,102070.0,0.35206092]
[1738126098902,0.48208513,102080.0,102070.0,0.35206092]
[1738126099096,0.09088513,102080.0,102070.0,0.35206092]
[1738126102602,0.003,102080.0,102070.0,0.64551339]
[1738126105102,0.003,102080.0,102070.0,0.99766126]
[1738126111512,0.003,102080.0,102070.0,0.64551339]
[1738126112216,0.3638,102080.0,102070.0,0.59705539]
[1738126112915,0.412258,102080.0,102070.0,0.40104339]
[1738126113115,0.640751,102080.0,102070.0,0.33594339]
[1738126113408,0.752909,102080.0,102070.0,0.33594339]
[1738126113709,0.752909,102080.0,102070.0,0.29345247]
[1738126116110,0.196012,102070.0,102060.0,0.00014685]
[1738126116318,0.60527,102070.0,102060.0,0.00014685]
[1738126117408,0.60527,102070.0,102060.0,0.00114685]
[1738126119218,0.69328623,102070.0,102060.0,0.00114685]
[1738126124421,0.70315509,102070.0,102060.0,0.00114685]
[1738126133832,0.82051006,102070.0,102060.0,0.00114685]
[1738126140433,0.82051006,102070.0,102060.0,0.19717785]
[1738126144232,0.73249383,102070.0,102060.0,0.19717785]
[1738126144432,0.73249383,102070.0,102060.0,0.23964265]
[1738126151743,0.82062962,102070.0,102060.0,0.23964265]
[1738126152346,0.82062962,102070.0,102060.0,0.23864265]
[1738126152641,0.82262962,102070.0,102060.0,0.23864265]
[1738126155947,0.88135539,102070.0,102060.0,0.23864265]
[1738126156948,0.52055539,102070.0,102060.0,0.23864265]
[1738126157137,0.88135539,102070.0,102060.0,0.23864265]
[1738126163856,0.82263903,102070.0,102060.0,0.23864265]
[1738126164053,0.77418103,102070.0,102060.0,0.28710065]
[1738126164261,0.21736903,102070.0,102060.0,0.28710065]
[1738126164449,0.21736903,102070.0,102060.0,0.31800065]
[1738126164858,0.57816903,102070.0,102060.0,0.36645865]
[1738126165059,0.20750017,102070.0,102060.0,0.36645865]
[1738126165557,0.20750017,102070.0,102060.0,0.31800065]
[1738126165945,0.56830017,102070.0,102060.0,0.31800065]
[1738126166149,0.20750017,102070.0,102060.0,0.31800065]
[1738126166962,0.20750017,102070.0,102060.0,0.36645865]
[1738126167449,0.20750017,102070.0,102060.0,0.31800065]
[1738126167649,0.56830017,102070.0,102060.0,0.31800065]
[1738126167851,0.3628,102070.0,102060.0,0.96360099]
[1738126168251,0.002,102070.0,102060.0,0.96360099]
[1738126168459,0.002,102070.0,102060.0,0.97316749]
[1738126168860,0.3628,102070.0,102060.0,0.97316749]
[1738126169357,0.002,102070.0,102060.0,0.96360099]
[1738126169561,0.3628,102070.0,102060.0,0.28710065]
[1738126169756,0.60727,102070.0,102060.0,0.32052265]
[1738126171462,0.60727,102070.0,102060.0,0.96579763]
[1738126172463,0.60727,102070.0,102060.0,0.88391763]
[1738126174070,0.81282883,102070.0,102060.0,0.23864265]
[1738126176073,0.81282883,102070.0,102060.0,0.04261165]
[1738126178375,0.81282883,102070.0,102060.0,0.00014685]
[1738126180978,0.45202883,102070.0,102060.0,0.00014685]
[1738126181272,1.08553219,102070.0,102060.0,0.00014685]
[1738126188284,1.08553219,102070.0,102060.0,0.04265551]
[1738126189183,1.08553219,102070.0,102060.0,0.23868651]
[1738126191175,0.72473219,102070.0,102060.0,0.23868651]
[1738126191482,0.8128322,102070.0,102060.0,0.23868651]
[1738126192585,0.7643742,102070.0,102060.0,0.28714451]
[1738126193886,0.69537001,102070.0,102060.0,0.23868651]
[1738126194074,0.64691201,102070.0,102060.0,0.23868651]
[1738126194693,0.69537001,102070.0,102060.0,0.23868651]
[1738126194983,0.69537001,102070.0,102060.0,0.28714451]
[1738126195585,0.64691201,102070.0,102060.0,0.28714451]
[1738126197985,0.64691201,102070.0,102060.0,0.23868651]
[1738126198385,0.69537001,102070.0,102060.0,0.23868651]
[1738126202190,0.69537001,102070.0,102060.0,0.53199332]
[1738126202685,0.64691201,102070.0,102060.0,0.53199332]
[1738126203186,0.64691201,102070.0,102060.0,0.58045132]
[1738126203789,0.64691201,102070.0,102060.0,0.53199332]
[1738126204189,0.64691201,102070.0,102060.0,0.58045132]
[1738126204491,0.64691201,102070.0,102060.0,0.53199332]
[1738126204688,0.69537001,102070.0,102060.0,0.53199332]
[1738126205488,1.05617001,102070.0,102060.0,0.53199332]
[1738126205689,1.05617001,102070.0,102060.0,0.33596232]
[1738126205889,1.2066322,102070.0,102060.0,0.04265551]
[1738126208989,1.2066322,102070.0,102060.0,0.00014685]
[1738126209292,1.31381793,102070.0,102060.0,0.00014685]
[1738126209882,1.26535993,102070.0,102060.0,0.00014685]
[1738126210894,1.31381793,102070.0,102060.0,0.00014685]
[1738126213196,1.37254903,102070.0,102060.0,0.00014685]
[1738126214783,1.32409103,102070.0,102060.0,0.00014685]
[1738126215898,1.37254903,102070.0,102060.0,0.00014685]
[1738126216495,1.32409103,102070.0,102060.0,0.00014685]
[1738126217092,1.14789774,102070.0,102060.0,0.00014685]
[1738126220102,1.26528691,102070.0,102060.0,0.00014685]
[1738126228413,1.23228691,102070.0,102060.0,0.00014685]
[1738126230405,1.18382891,102070.0,102060.0,0.24463585]
[1738126230807,1.23228691,102070.0,102060.0,0.23864397]
[1738126231108,1.23228691,102070.0,102060.0,0.19617785]
[1738126231311,1.28074491,102070.0,102060.0,0.00014685]
[1738126231514,1.23228691,102070.0,102060.0,0.00014685]
[1738126231702,1.28074491,102070.0,102060.0,0.00014685]
[1738126231896,2.66335574,102070.0,102060.0,0.00014685]
[1738126232100,2.69475574,102070.0,102060.0,0.00014685]
[1738126232408,1.19475574,102070.0,102060.0,0.00014685]
[1738126232904,1.14629774,102070.0,102060.0,0.00014685]
[1738126235916,1.32249103,102070.0,102060.0,0.00014685]
[1738126236511,0.60089103,102070.0,102060.0,0.00014685]
[1738126236712,1.32249103,102070.0,102060.0,0.00014685]
[1738126239411,1.32249103,102070.0,102060.0,0.04267485]
[1738126240003,1.29109103,102070.0,102060.0,0.04267485]
[1738126247221,1.29109103,102070.0,102060.0,0.00014685]
[1738126247421,1.23243692,102070.0,102060.0,0.0426821]
[1738126251330,1.28089492,102070.0,102060.0,0.00014685]
[1738126251621,1.31119492,102070.0,102060.0,0.00014685]
[1738126253524,1.26273692,102070.0,102060.0,0.00014685]
[1738126254117,1.26273692,102070.0,102060.0,0.04268217]
[1738126256027,1.32139103,102070.0,102060.0,0.00014685]
[1738126256228,1.32139103,102070.0,102060.0,0.04268241]
[1738126256529,1.36984903,102070.0,102060.0,0.04268241]
[1738126256919,0.196031,102060.0,102050.0,0.32580681]
[1738126257124,0.684047,102060.0,102050.0,0.29330681]
[1738126257325,0.717147,102060.0,102050.0,0.29330681]
[1738126259527,1.04016803,102060.0,102050.0,0.001]
[1738126261138,0.89259503,102060.0,102040.0,0.00014685]
[1738126261325,0.19607,102040.0,102030.0,0.67787498]
[1738126261630,0.653786,102040.0,102030.0,0.67787498]
[1738126261839,0.684386,102040.0,102030.0,0.67787498]
[1738126262337,0.684386,102040.0,102030.0,0.64527498]
[1738126262530,0.716586,102040.0,102030.0,0.65227498]
[1738126263232,0.716586,102040.0,102030.0,0.007]
[1738126264735,0.765044,102040.0,102030.0,0.007]
[1738126264936,0.244547,102030.0,102020.0,0.0002736]
[1738126265130,0.605347,102030.0,102020.0,0.0002736]
[1738126265535,0.638047,102030.0,102020.0,0.0002736]
[1738126266238,0.686505,102030.0,102020.0,0.0002736]
[1738126266629,0.687505,102030.0,102020.0,0.0072736]
[1738126269140,0.77535717,102030.0,102020.0,0.0072736]
[1738126270734,0.72689917,102030.0,102020.0,0.0072736]
[1738126271242,0.69419917,102030.0,102020.0,0.0072736]
[1738126271436,0.69419917,102030.0,102020.0,0.0400736]
[1738126273039,0.606347,102030.0,102020.0,0.0400736]
[1738126286447,0.605347,102030.0,102020.0,0.0330736]
[1738126288248,0.81050208,102030.0,102020.0,0.0330736]
[1738126291636,0.95713072,102030.0,102020.0,0.0330736]
[1738126291848,0.86927855,102030.0,102020.0,0.0330736]
[1738126295653,0.75197564,102030.0,102020.0,0.0330736]
[1738126296444,0.75197564,102030.0,102020.0,0.07564163]
[1738126303758,0.70351764,102030.0,102020.0,0.27174963]
[1738126303962,0.75197564,102030.0,102020.0,0.27174963]
[1738126307365,0.70351764,102030.0,102020.0,0.32020763]
[1738126308561,0.14662864,102030.0,102020.0,0.32020763]
[1738126309465,0.14662864,102030.0,102020.0,0.61351444]
[1738126309466,0.20564794,102030.0,102020.0,0.61351444]
[1738126312767,0.60698245,102040.0,102020.0,0.46586444]
[1738126312973,0.32296878,102050.0,102040.0,0.19607]
[1738126313168,0.20607884,102060.0,102050.0,0.19605]
[1738126313473,0.20555883,102060.0,102050.0,0.31927603]
[1738126313663,0.25401683,102060.0,102050.0,0.27081803]
[1738126313870,0.61481683,102060.0,102050.0,0.27081803]
[1738126314264,0.61481683,102060.0,102050.0,0.22825]
[1738126314665,0.62381683,102060.0,102050.0,0.22925]
[1738126315272,0.63360018,102060.0,102050.0,0.22925]
[1738126316178,0.63060018,102060.0,102050.0,0.22925]
[1738126317878,0.42504135,102060.0,102050.0,0.40507888]
[1738126319973,0.66953035,102060.0,102050.0,0.17682888]
[1738126320281,0.73203035,102060.0,102050.0,0.12692888]
[1738126320980,2.23203035,102060.0,102050.0,0.12692888]
[1738126322280,2.23203035,102060.0,102050.0,0.10438018]
[1738126322471,2.23203035,102060.0,102050.0,0.01959347]
[1738126322671,2.28274143,102060.0,102050.0,0.01959347]
[1738126326185,0.19605,102050.0,102040.0,0.00014685]
[1738126326382,0.66226354,102050.0,102040.0,0.00014685]
[1738126327583,0.66526354,102050.0,102040.0,0.00014685]
[1738126330384,0.66826354,102050.0,102040.0,0.00114685]
[1738126330877,0.59445,102050.0,102040.0,0.00114685]
[1738126331077,0.66826354,102050.0,102040.0,0.00114685]
[1738126332591,0.63666354,102050.0,102040.0,0.00114685]
[1738126336190,0.27586354,102050.0,102040.0,0.00114685]
[1738126336389,0.99746354,102050.0,102040.0,0.00114685]
[1738126338292,0.27586354,102050.0,102040.0,0.00114685]
[1738126338489,0.99746354,102050.0,102040.0,0.00114685]
[1738126342185,2.49746354,102050.0,102040.0,0.00114685]
[1738126342694,2.52054092,102050.0,102040.0,0.00114685]
[1738126343897,2.47209546,102050.0,102040.0,0.00114685]
[1738126345896,0.97209546,102050.0,102040.0,0.00114685]
[1738126350094,1.11853551,102050.0,102040.0,0.00114685]
[1738126352606,1.16698097,102050.0,102040.0,0.00114685]
[1738126352909,1.5,102040.0,102030.0,0.29953851]
[1738126353103,2.15376092,102040.0,102030.0,0.29953851]
[1738126354604,0.65376092,102040.0,102030.0,0.29953851]
[1738126354906,1.01756092,102040.0,102030.0,0.29953851]
[1738126357605,1.01756092,102040.0,102030.0,0.0651]
[1738126357606,1.33980188,102040.0,102030.0,0.0651]
[1738126361203,1.16417981,102040.0,102030.0,0.0651]
[1738126362611,1.17406875,102040.0,102030.0,0.0651]
[1738126376121,1.12562329,102040.0,102030.0,0.0651]
[1738126376324,1.29128204,102040.0,102030.0,0.0651]
[1738126376720,1.24283658,102040.0,102030.0,0.0651]
[1738126376928,1.29128204,102040.0,102030.0,0.0651]
[1738126377624,1.24283658,102040.0,102030.0,0.0651]
[1738126377924,1.29128204,102040.0,102030.0,0.0651]
[1738126380128,1.17406875,102040.0,102030.0,0.0651]
[1738126380428,1.12562329,102040.0,102030.0,0.0651]
[1738126381229,1.17406875,102040.0,102030.0,0.0651]
[1738126381527,1.12562329,102040.0,102030.0,0.0651]
[1738126381930,1.17406875,102040.0,102030.0,0.0651]
[1738126382729,1.12562329,102040.0,102030.0,0.0651]
[1738126382928,1.30124536,102040.0,102030.0,0.0651]
[1738126388930,1.10517536,102040.0,102030.0,0.0651]
[1738126389133,1.0567299,102040.0,102030.0,0.30963446]
[1738126389338,0.3351299,102040.0,102030.0,0.35159251]
[1738126389631,0.6959299,102040.0,102030.0,0.35159251]
[1738126390338,0.74437536,102040.0,102030.0,0.30314705]
[1738126391338,0.94044536,102040.0,102030.0,0.30314705]
[1738126391835,0.73563594,102040.0,102030.0,0.83089237]
[1738126394342,0.68719048,102040.0,102030.0,0.83089237]
[1738126394639,0.73563594,102040.0,102030.0,0.83089237]
[1738126394835,0.6182044,102040.0,102030.0,0.53758556]
[1738126395642,0.56975894,102040.0,102030.0,0.53758556]
[1738126397138,0.56975894,102040.0,102030.0,0.58603102]
[1738126399845,0.01288894,102040.0,102030.0,0.58603102]
[1738126400040,0.003,102040.0,102030.0,1.02855102]
[1738126400241,0.82105228,102050.0,102040.0,0.19607]
[1738126400441,0.82105228,102050.0,102040.0,0.27731546]
[1738126400741,0.82105228,102050.0,102040.0,0.31921539]
[1738126401548,0.83103031,102050.0,102040.0,0.31921539]
[1738126402139,0.56697988,102050.0,102040.0,0.31921539]
[1738126402339,0.56697988,102050.0,102040.0,0.27731546]
[1738126402640,0.56697988,102050.0,102040.0,0.31920365]
[1738126402844,0.57297988,102050.0,102040.0,0.27831546]
[1738126404251,0.57297988,102050.0,102040.0,0.32019825]
[1738126405243,0.57297988,102050.0,102040.0,0.27831546]
[1738126405854,0.57297988,102050.0,102040.0,0.51301635]
[1738126406053,0.37692488,102050.0,102040.0,0.51301635]
[1738126406353,0.37692488,102050.0,102040.0,0.6033329]
[1738126406755,0.37692488,102050.0,102040.0,0.55488744]
[1738126407250,0.37692488,102050.0,102040.0,0.51301635]
[1738126416460,0.01612488,102050.0,102040.0,0.51301635]
[1738126416651,0.37692488,102050.0,102040.0,0.51301635]
[1738126421468,0.01612488,102050.0,102040.0,0.51301635]
[1738126421765,0.37692488,102050.0,102040.0,0.51301635]
[1738126422165,0.01612488,102050.0,102040.0,0.51301635]
[1738126422463,0.37692488,102050.0,102040.0,0.51301635]
[1738126423559,0.37692488,102050.0,102040.0,0.5549335]
[1738126428367,0.01612488,102050.0,102040.0,0.5549335]
[1738126428563,0.37692488,102050.0,102040.0,0.5549335]
[1738126431269,0.49435642,102050.0,102040.0,0.96550759]
[1738126436071,0.58253612,102050.0,102040.0,0.96550759]
[1738126437079,0.22173612,102050.0,102040.0,0.96550759]
[1738126437375,0.58253612,102050.0,102040.0,0.96550759]
[1738126438374,0.58253612,102050.0,102040.0,1.01395305]
[1738126438576,0.58253612,102050.0,102040.0,0.96550759]
[1738126439864,0.58253612,102050.0,102040.0,0.97543937]
[1738126444084,0.58253612,102050.0,102040.0,0.6234712]
[1738126444677,0.58253612,102050.0,102040.0,0.61353942]
[1738126449686,0.58253612,102050.0,102040.0,0.62322367]
[1738126451686,0.58253612,102050.0,102040.0,0.61353942]
[1738126452385,0.58253612,102050.0,102040.0,0.96550759]
[1738126452386,0.46510458,102050.0,102040.0,0.96550759]
[1738126456497,0.46510458,102050.0,102040.0,1.2529367]
[1738126457085,0.46510458,102050.0,102040.0,1.20449124]
[1738126457287,0.46510458,102050.0,102040.0,1.2529367]
[1738126459398,0.46510458,102050.0,102040.0,0.96550759]
[1738126461093,0.46510458,102050.0,102040.0,1.01395305]
[1738126461696,0.46510458,102050.0,102040.0,0.96550759]
[1738126462297,0.46510458,102050.0,102040.0,1.01395305]
[1738126462488,0.10430458,102050.0,102040.0,1.01395305]
[1738126465797,0.09432655,102050.0,102040.0,1.01395305]
[1738126467304,0.00614685,102050.0,102040.0,1.00527969]
[1738126473009,0.00614685,102050.0,102040.0,1.08675969]
[1738126475304,0.00614685,102050.0,102040.0,1.44755969]
[1738126481814,0.00614685,102050.0,102040.0,1.39911423]
[1738126482715,0.00614685,102050.0,102040.0,1.44755969]
[1738126483718,0.00614685,102050.0,102040.0,1.39911423]
[1738126484013,0.00614685,102050.0,102040.0,1.44755969]
[1738126487317,0.00614685,102050.0,102040.0,1.16292624]
[1738126492214,0.00614685,102050.0,102040.0,1.44755969]
[1738126495417,0.00614685,102050.0,102040.0,1.16292624]
[1738126495818,0.00614685,102050.0,102040.0,1.11448078]
[1738126496009,0.00614685,102050.0,102040.0,1.16292624]
[1738126496211,0.00614685,102050.0,102040.0,1.08144624]
[1738126496419,0.61144231,102050.0,102040.0,0.62375532]
[1738126496724,0.56299685,102050.0,102040.0,0.59095532]
[1738126497027,0.56299685,102050.0,102040.0,0.63940078]
[1738126497713,0.20219685,102050.0,102040.0,0.63940078]
[1738126497923,0.56299685,102050.0,102040.0,0.68784624]
[1738126498309,0.36694685,102050.0,102040.0,0.68784624]
[1738126498510,0.00614685,102050.0,102040.0,0.98187673]
[1738126498818,0.09432655,102050.0,102040.0,1.01197673]
[1738126502226,0.00614685,102050.0,102040.0,1.0003014]
[1738126505725,0.00614685,102050.0,102040.0,0.95185594]
[1738126506925,0.00614685,102050.0,102040.0,1.0003014]
[1738126509427,0.00614685,102050.0,102040.0,0.95185594]
[1738126509821,0.00614685,102050.0,102040.0,0.90341048]
[1738126509822,0.05459231,102050.0,102040.0,0.90341048]
[1738126510024,0.00614685,102050.0,102040.0,0.95467048]
[1738126510818,0.00614685,102050.0,102040.0,1.00311594]
[1738126511117,0.00614685,102050.0,102040.0,0.92175594]
[1738126517333,0.36694685,102050.0,102040.0,0.92175594]
[1738126517530,0.00614685,102050.0,102040.0,0.92175594]
[1738126517835,0.00614685,102050.0,102040.0,0.95295594]
[1738126519228,0.36694685,102050.0,102040.0,0.95295594]
[1738126520229,0.36694685,102050.0,102040.0,1.03431594]
[1738126521024,0.56299685,102050.0,102040.0,1.03431594]
[1738126522029,0.56299685,102050.0,102040.0,1.03427594]
[1738126524335,0.20219685,102050.0,102040.0,1.03427594]
[1738126524535,0.56299685,102050.0,102040.0,1.03427594]
[1738126533747,0.56299685,102050.0,102040.0,0.90451048]
[1738126533931,0.56299685,102050.0,102040.0,0.98579048]
[1738126538651,0.65117655,102050.0,102040.0,0.64546094]
[1738126545047,0.65117655,102050.0,102040.0,0.56418094]
[1738126545246,0.65117655,102050.0,102040.0,0.64542094]
[1738126546054,0.65117655,102050.0,102040.0,0.56418094]
[1738126546256,0.65117655,102050.0,102040.0,0.64542094]
[1738126546650,0.65117655,102050.0,102040.0,0.99738911]
[1738126550165,0.65117655,102050.0,102040.0,0.70339532]
[1738126552962,0.65117655,102050.0,102040.0,0.62215532]
[1738126554366,0.65117655,102050.0,102040.0,0.90226852]
[1738126568383,0.65117655,102050.0,102040.0,0.95071398]
[1738126569080,0.65117655,102050.0,102040.0,0.96463899]
[1738126572789,0.65117655,102050.0,102040.0,0.67060078]
[1738126574578,0.65117655,102050.0,102040.0,0.62215532]
[1738126575096,0.65117655,102050.0,102040.0,0.67060078]
[1738126576791,0.65117655,102050.0,102040.0,0.62215532]
[1738126579481,0.65117655,102050.0,102040.0,0.90298861]
[1738126581281,0.65117655,102050.0,102040.0,0.95143407]
[1738126583090,0.29037655,102050.0,102040.0,0.95143407]
[1738126583392,0.65117655,102050.0,102040.0,0.95143407]
[1738126583592,0.65117655,102050.0,102040.0,0.96460108]
[1738126587295,0.65117655,102050.0,102040.0,0.61263291]
[1738126588595,0.65117655,102050.0,102040.0,0.62235931]
[1738126588889,0.09432655,102050.0,102040.0,0.67080477]
[1738126594100,0.09432655,102050.0,102040.0,0.65763776]
[1738126594303,0.00614685,102050.0,102040.0,0.65763776]
[1738126594492,0.00614685,102050.0,102040.0,0.67235776]
[1738126597803,0.00614685,102050.0,102040.0,1.02494691]
[1738126604007,0.36694685,102050.0,102040.0,1.02494691]
[1738126604205,0.41539231,102050.0,102040.0,0.90360959]
[1738126604419,0.41539231,102050.0,102040.0,0.95344959]
[1738126604599,0.36694685,102050.0,102040.0,1.00189505]
[1738126607309,0.00614685,102050.0,102040.0,1.00189505]
[1738126607510,0.36694685,102050.0,102040.0,1.00189505]
[1738126609911,0.36694685,102050.0,102040.0,0.66233179]
[1738126612812,0.45512655,102050.0,102040.0,0.66233179]
[1738126613314,0.09432655,102050.0,102040.0,0.66233179]
[1738126613513,0.45512655,102050.0,102040.0,0.58129179]
[1738126617215,0.36694685,102050.0,102040.0,0.92085505]
[1738126619214,0.00614685,102050.0,102040.0,0.92085505]
[1738126619414,0.36694685,102050.0,102040.0,0.92085505]
[1738126620416,0.56299685,102050.0,102040.0,0.92085505]
[1738126623216,0.61144231,102050.0,102040.0,0.87240959]
[1738126624702,0.61144231,102050.0,102040.0,0.67633959]
[1738126624907,0.61144231,102050.0,102040.0,0.29495143]
[1738126624908,1.09282201,102050.0,102040.0,0.29495143]
[1738126628622,1.09282201,102050.0,102040.0,0.001]
[1738126628623,1.12207385,102050.0,102040.0,0.001]
[1738126636526,1.21007597,102050.0,102040.0,0.001]